[Event "FIDE World Senior-Women CC 2023"]
[Site "Terrasini"]
[Date "2023.11.03"]
[Round "9.3"]
[White "Burchardt, Brigitte"]
[Black "Klinova, Masha"]
[Result "0-1"]
[ECO "B06"]
[WhiteElo "2124"]
[BlackElo "2249"]
[Annotator "RC"]
[PlyCount "94"]
[EventDate "2023.10.22"]
[EventType "swiss"]
[EventCountry "ITA"]
[SourceTitle "playchess.com"]
[Source "ChessBase"]
[SourceQuality "1"]
[TimeControl "40/5400+30:1800+30"]

1. e4 {[%emt 0:00:03]} d6 {[%emt 0:00:02]} 2. d4 {[%emt 0:00:09]} g6 {[%emt 0:00:04]} 3. Nc3 {[%emt 0:00:12]} Bg7 {[%emt 0:00:07]} 4. Be3 {[%emt 0:00:26]} a6 {[%emt 0:00:21]} 5. Qd2 {[%emt 0:02:05]} Nd7 {[%emt 0:03:18]} 6. Nf3 {[%emt 0:07:23]} b5 {[%emt 0:03:58]} 7. a3 {[%emt 0:26:03]} Bb7 {[%emt 0:03:39]} 8. d5 {[%emt 0:05:56]} Ngf6 {[%emt 0:09:58]} 9. Nd4 {[%emt 0:02:09]} O-O {[%emt 0:07:11]} 10. f3 {[%emt 0:04:51]} Ne5 {[%emt 0:07:20]} 11. Bh6 {[%emt 0:00:24]} c5 {[%emt 0:02:30]} 12. dxc6 {[%emt 0:01:41]} Nxc6 {[%emt 0:00:31]} 13. Bxg7 {[%emt 0:07:52]} Kxg7 {[%emt 0:00:35]} 14. Nxc6 {[%emt 0:01:30]} Bxc6 {[%emt 0:00:06]} 15. h4 {[%emt 0:02:43]} h5 {[%emt 0:04:20]} 16. O-O-O {[%emt 0:01:59]} Qb6 {[%emt 0:03:29]} 17. Nd5 {[%emt 0:02:59]} Bxd5 {[%emt 0:03:46]} 18. exd5 {[%emt 0:00:05]} Rfc8 {[%emt 0:05:31]} 19. g4 {[%emt 0:03:44]} Rc7 {[%emt 0:11:27]} 20. gxh5 {[%emt 0:03:32]} Nxh5 {[%emt 0:00:13]} 21. Bd3 {[%emt 0:00:25]} Qd4 {[%emt 0:04:35]} 22. Kb1 {[%emt 0:06:21]} Rh8 {[%emt 0:05:35]} 23. Qa5 {[%emt 0:02:41]} Qa7 {[%emt 0:04:26]} 24. Qe1 {[%emt 0:00:31]} Qc5 {[%emt 0:01:33]} 25. Rg1 {[%emt 0:01:27]} Kf8 {[%emt 0:05:08]} 26. Rg5 {[%emt 0:03:01]} Nf6 {[%emt 0:03:25]} 27. Rd2 {[%emt 0:01:43]} b4 {[%emt 0:00:41]} 28. axb4 {[%emt 0:01:42]} Qxb4 {[%emt 0:00:11]} 29. h5 {[%emt 0:05:09]} Rxh5 {[%emt 0:00:45]} 30. Rxh5 {[%emt 0:00:20]} Nxh5 {[%emt 0:00:42]} 31. c4 {[%emt 0:00:28]} Kg7 {[%emt 0:01:45]} 32. Qe3 {[%emt 0:00:23]} Qc5 {[%emt 0:01:34]} 33. Qg5 {[%emt 0:00:17]} Qb4 {[%emt 0:02:35]} 34. Re2 {[%emt 0:01:27]} Rb7 {[%emt 0:02:19]} 35. Qe3 {[%emt 0:03:16]} Qc5 {[%emt 0:00:37]} 36. Qd2 {[%emt 0:00:57]} Qd4 {[%emt 0:00:27]} 37. Re4 {[%emt 0:00:21]} Qf6 {[%emt 0:00:58]} 38. f4 {[%emt 0:01:30]} Ng3 {[%emt 0:01:29]} 39. Re1 {[%emt 0:00:16]} Nf5 {[%emt 0:00:53]} 40. Ka2 {[%emt 0:00:47]} Nd4 {[%emt 0:00:51]} 41. Rh1 {[%emt 0:30:56]} Kg8 {[%emt 0:31:18]} 42. Be4 {[%emt 0:00:00]} Nb3 {[%emt 0:00:00]} 43. Qc2 {[%emt 0:00:00]} Nc5 {[%emt 0:00:00]} 44. Rh2 {[%emt 0:00:00]} a5 {[%emt 0:00:00]} 45. Rg2 {[%emt 0:00:00]} Kf8 {[%emt 0:00:00]} 46. Bxg6 {[%emt 0:00:00]} fxg6 {[%emt 0:00:00]} 47. Rxg6 {[%emt 0:00:00]} Rxb2+ {[%emt 0:00:00]} 0-1

[Event "FIDE World Senior-Women CC 2023"]
[Site "Terrasini"]
[Date "2023.11.03"]
[Round "9.4"]
[White "Folkova, Martina"]
[Black "Leszner, Liliana"]
[Result "1-0"]
[ECO "B06"]
[WhiteElo "2022"]
[BlackElo "1891"]
[Annotator "NA RC"]
[PlyCount "96"]
[EventDate "2023.10.22"]
[EventType "swiss"]
[EventCountry "ITA"]
[SourceTitle "playchess.com"]
[Source "ChessBase"]
[SourceQuality "1"]
[TimeControl "40/5400+30:1800+30"]

1. e4 {[%emt 0:00:03]} d6 {[%emt 0:00:26]} 2. d4 {[%emt 0:00:07]} g6 {[%emt 0:00:09]} 3. Nc3 {[%emt 0:00:47]} Bg7 {[%emt 0:00:11]} 4. f4 {[%emt 0:00:39]} a6 {[%emt 0:00:44]} 5. Nf3 {[%emt 0:00:54]} b5 {[%emt 0:00:44]} 6. Be3 {[%emt 0:13:25]} Bb7 {[%emt 0:00:57]} 7. Bd3 {[%emt 0:01:42]} b4 {[%emt 0:03:47]} 8. Ne2 {[%emt 0:01:40]} Nf6 {[%emt 0:00:33]} 9. Ng3 {[%emt 0:01:19]} Ng4 {[%emt 0:06:04]} 10. Bg1 {[%emt 0:01:42]} e5 {[%emt 0:04:10]} 11. fxe5 {[%emt 0:10:53]} dxe5 {[%emt 0:00:11]} 12. h3 {[%emt 0:01:07]} Nh6 {[%emt 0:03:51]} 13. Nxe5 {[%emt 0:10:01]} c5 {[%emt 0:04:47]} 14. Qd2 {[%emt 0:15:19]} cxd4 {[%emt 0:03:05]} 15. Bxd4 {[%emt 0:10:13]} O-O {[%emt 0:02:51]} 16. Ne2 {[%emt 0:02:27]} Bxe4 {[%emt 0:01:18]} 17. O-O {[%emt 0:10:56]} Bxd3 {[%emt 0:01:42]} 18. Qxd3 {[%emt 0:00:15]} Nf5 {[%emt 0:01:36]} 19. Rxf5 {[%emt 0:00:32]} gxf5 {[%emt 0:00:02]} 20. Qxf5 {[%emt 0:00:29]} Qc8 {[%emt 0:01:54]} 21. Qf3 {[%emt 0:04:27]} Nd7 {[%emt 0:01:09]} 22. Nc6 {[%emt 0:00:32]} Qe8 {[%emt 0:03:36]} 23. Bxg7 {[%emt 0:01:23]} Kxg7 {[%emt 0:00:03]} 24. Ned4 {[%emt 0:01:03]} Ne5 {[%emt 0:02:01]} 25. Qg3+ {[%emt 0:00:20]} Ng6 {[%emt 0:00:06]} 26. Re1 {[%emt 0:01:20]} Qd7 {[%emt 0:03:48]} 27. Re7 {[%emt 0:02:33]} Qd5 {[%emt 0:00:21]} 28. Re5 {[%emt 0:00:13]} Qd7 {[%emt 0:02:06]} 29. Rh5 {[%emt 0:00:54]} f6 {[%emt 0:03:39]} 30. Nf5+ {[%emt 0:00:24]} Kh8 {[%emt 0:05:25]} 31. Qxg6 {[%emt 0:00:02]} Rf7 {[%emt 0:00:10]} 32. Ncd4 {[%emt 0:04:40]} Rg8 {[%emt 0:03:40]} 33. Qh6 {[%emt 0:00:03]} Qd5 {[%emt 0:00:34]} 34. Qd2 {[%emt 0:00:21]} Qxa2 {[%emt 0:01:01]} 35. Nh6 {[%emt 0:00:44]} Rd8 {[%emt 0:05:37]} 36. Nxf7+ {[%emt 0:00:16]} Qxf7 {[%emt 0:00:03]} 37. Rh4 {[%emt 0:00:26]} a5 {[%emt 0:00:42]} 38. Qf2 {[%emt 0:00:26]} a4 {[%emt 0:01:11]} 39. Rf4 {[%emt 0:01:36]} Qa7 {[%emt 0:01:28]} 40. c3 {[%emt 0:00:36]} a3 {[%emt 0:05:19]} 41. Rxf6 {[%emt 0:06:37]} Kg8 {[%emt 0:06:43]} 42. Rf4 {[%emt 0:06:36]} Qe7 {[%emt 0:03:21]} 43. bxa3 {[%emt 0:01:32]} bxa3 {[%emt 0:00:20]} 44. Kh2 {[%emt 0:04:35]} Rb8 {[%emt 0:01:55]} 45. Nc6 {[%emt 0:04:29]} Qc7 {[%emt 0:01:24]} 46. Nxb8 {[%emt 0:00:03]} Qxb8 {[%emt 0:00:42]} 47. Qg3+ {[%emt 0:00:37]} Kh8 {[%emt 0:00:19]} 48. Ra4 {[%emt 0:00:14]} Qb6 {[%emt 0:01:28]} 1-0

[Event "FIDE World Senior-Women CC 2023"]
[Site "Terrasini"]
[Date "2023.11.03"]
[Round "9.5"]
[White "Gaprindashvili, Nona"]
[Black "Mikhaylova, Irina"]
[Result "1/2-1/2"]
[ECO "D85"]
[WhiteElo "2267"]
[BlackElo "2216"]
[Annotator "RC"]
[PlyCount "62"]
[EventDate "2023.10.22"]
[EventType "swiss"]
[EventCountry "ITA"]
[SourceTitle "playchess.com"]
[Source "ChessBase"]
[SourceQuality "1"]
[TimeControl "40/5400+30:1800+30"]

1. d4 {[%emt 0:00:07]} Nf6 {[%emt 0:00:29]} 2. c4 {[%emt 0:00:09]} g6 {[%emt 0:00:09]} 3. Nc3 {[%emt 0:00:11]} d5 {[%emt 0:00:12]} 4. cxd5 {[%emt 0:00:10]} Nxd5 {[%emt 0:00:10]} 5. e4 {[%emt 0:00:08]} Nxc3 {[%emt 0:00:07]} 6. bxc3 {[%emt 0:00:02]} Bg7 {[%emt 0:00:09]} 7. Be3 {[%emt 0:00:14]} c5 {[%emt 0:02:35]} 8. Rc1 {[%emt 0:00:41]} Qa5 {[%emt 0:00:45]} 9. Qd2 {[%emt 0:00:11]} cxd4 {[%emt 0:00:36]} 10. cxd4 {[%emt 0:00:11]} Qxd2+ {[%emt 0:00:06]} 11. Kxd2 {[%emt 0:00:03]} O-O {[%emt 0:00:41]} 12. Nf3 {[%emt 0:04:42]} Rd8 {[%emt 0:15:45]} 13. d5 {[%emt 0:36:04]} e6 {[%emt 0:04:40]} 14. Bc4 {[%emt 0:01:40]} exd5 {[%emt 0:02:24]} 15. Bxd5 {[%emt 0:01:33]} Nc6 {[%emt 0:07:43]} 16. Ke2 {[%emt 0:00:50]} Be6 {[%emt 0:12:26]} 17. Bxe6 {[%emt 0:05:52]} fxe6 {[%emt 0:00:06]} 18. Rhd1 {[%emt 0:01:44]} h6 {[%emt 0:11:37]} 19. Rb1 {[%emt 0:01:24]} b6 {[%emt 0:01:32]} 20. Rdc1 {[%emt 0:04:49]} Rac8 {[%emt 0:01:15]} 21. Rc4 {[%emt 0:01:32]} Na5 {[%emt 0:06:50]} 22. Rxc8 {[%emt 0:00:53]} Rxc8 {[%emt 0:00:02]} 23. Rd1 {[%emt 0:01:47]} Rc2+ {[%emt 0:02:31]} 24. Kf1 {[%emt 0:01:52]} Nc4 {[%emt 0:07:40]} 25. Rd8+ {[%emt 0:02:32]} Kh7 {[%emt 0:00:11]} 26. Bd4 {[%emt 0:07:59]} e5 {[%emt 0:05:33]} 27. Be3 {[%emt 0:09:38]} Rxa2 {[%emt 0:02:25]} 28. Rd7 {[%emt 0:00:15]} Nxe3+ {[%emt 0:08:44]} 29. fxe3 {[%emt 0:00:03]} Ra4 {[%emt 0:00:25]} 30. Ke2 {[%emt 0:01:17]} Rxe4 {[%emt 0:04:05]} 31. Rxa7 {[%emt 0:00:52]} b5 {[%emt 0:00:29]} 1/2-1/2

[Event "FIDE World Senior-Women CC 2023"]
[Site "Terrasini"]
[Date "2023.11.04"]
[Round "10.1"]
[White "Khropova, Larisa"]
[Black "Calzetta Ruiz, Monica"]
[Result "0-1"]
[ECO "D00"]
[WhiteElo "2054"]
[BlackElo "2239"]
[Annotator "ChessBase"]
[PlyCount "80"]
[EventDate "2023.10.22"]
[EventType "swiss"]
[EventCountry "ITA"]
[SourceTitle "playchess.com"]
[Source "ChessBase"]
[SourceQuality "1"]
[TimeControl "40/5400+30:1800+30"]

1. d4 {[%emt 0:00:03]} Nf6 {[%emt 0:00:11]} 2. Nf3 {[%emt 0:00:07]} g6 {[%emt 0:00:22]} 3. Nc3 {[%emt 0:00:31]} d5 {[%emt 0:01:59]} 4. h3 {[%emt 0:02:06]} Bg7 {[%emt 0:02:05]} 5. Bf4 {[%emt 0:00:11]} O-O {[%emt 0:02:33]} 6. e3 {[%emt 0:00:06]} c5 {[%emt 0:12:49]} 7. Be2 {[%emt 0:05:31]} cxd4 {[%emt 0:02:03]} 8. exd4 {[%emt 0:00:39]} Nc6 {[%emt 0:00:45]} 9. O-O {[%emt 0:01:05]} Bf5 {[%emt 0:03:04]} 10. a3 {[%emt 0:01:01]} Rc8 {[%emt 0:01:02]} 11. Re1 {[%emt 0:12:35]} a6 {[%emt 0:26:51]} 12. Rc1 {[%emt 0:05:04]} Ne4 {[%emt 0:00:59]} 13. g4 {[%emt 0:23:17]} Be6 {[%emt 0:03:25]} 14. Be3 {[%emt 0:05:41]} h6 {[%emt 0:04:31]} 15. Nb1 {[%emt 0:06:12]} Kh7 {[%emt 0:11:19]} 16. c3 {[%emt 0:03:35]} f5 {[%emt 0:01:55]} 17. gxf5 {[%emt 0:06:10]} Bxf5 {[%emt 0:00:03]} 18. Kg2 {[%emt 0:01:44]} e6 {[%emt 0:01:02]} 19. Nbd2 {[%emt 0:04:12]} Rc7 {[%emt 0:00:14]} 20. Nf1 {[%emt 0:01:40]} Rcf7 {[%emt 0:00:23]} 21. N1h2 {[%emt 0:00:43]} e5 {[%emt 0:04:56]} 22. Rf1 {[%emt 0:02:10]} Qd7 {[%emt 0:00:24]} 23. Ng1 {[%emt 0:00:09]} exd4 {[%emt 0:00:16]} 24. cxd4 {[%emt 0:00:15]} Qd8 {[%emt 0:04:39]} 25. b4 {[%emt 0:02:46]} Ng5 {[%emt 0:01:19]} 26. Ng4 {[%emt 0:06:16]} Ne6 {[%emt 0:00:26]} 27. Bd3 {[%emt 0:05:12]} Ncxd4 {[%emt 0:00:48]} 28. Bxf5 {[%emt 0:00:23]} Nxf5 {[%emt 0:00:23]} 29. Bc5 {[%emt 0:00:36]} Nxc5 {[%emt 0:01:50]} 30. Rxc5 {[%emt 0:00:14]} d4 {[%emt 0:03:59]} 31. Qd3 {[%emt 0:00:53]} h5 {[%emt 0:01:16]} 32. Nh2 {[%emt 0:01:34]} b6 {[%emt 0:00:26]} 33. Rc2 {[%emt 0:00:32]} Qd5+ {[%emt 0:00:05]} 34. f3 {[%emt 0:02:01]} Ne3+ {[%emt 0:00:03]} 35. Kh1 {[%emt 0:00:27]} Nxc2 {[%emt 0:00:06]} 36. Qxc2 {[%emt 0:00:06]} d3 {[%emt 0:00:10]} 37. Qg2 {[%emt 0:02:02]} Rc7 {[%emt 0:01:05]} 38. f4 {[%emt 0:00:45]} Qxg2+ {[%emt 0:00:37]} 39. Kxg2 {[%emt 0:00:02]} Rc2+ {[%emt 0:00:48]} 40. Kg3 {[%emt 0:00:12]} h4+ {[%emt 0:00:26]} 0-1

[Event "FIDE World Senior-Women CC 2023"]
[Site "Terrasini"]
[Date "2023.11.04"]
[Round "10.3"]
[White "Folkova, Martina"]
[Black "Makropoulou, Marina"]
[Result "1/2-1/2"]
[ECO "C88"]
[WhiteElo "2022"]
[BlackElo "2081"]
[Annotator "NA"]
[PlyCount "24"]
[EventDate "2023.10.22"]
[EventType "swiss"]
[EventCountry "ITA"]
[SourceTitle "playchess.com"]
[Source "ChessBase"]
[SourceQuality "1"]
[TimeControl "40/5400+30:1800+30"]

1. e4 {[%emt 0:00:04]} e5 {[%emt 0:00:11]} 2. Nf3 {[%emt 0:00:04]} Nc6 {[%emt 0:00:07]} 3. Bb5 {[%emt 0:00:04]} a6 {[%emt 0:00:08]} 4. Ba4 {[%emt 0:00:03]} Nf6 {[%emt 0:00:16]} 5. O-O {[%emt 0:00:11]} b5 {[%emt 0:01:05]} 6. Bb3 {[%emt 0:00:09]} Bb7 {[%emt 0:00:29]} 7. d3 {[%emt 0:00:24]} Be7 {[%emt 0:00:30]} 8. a4 {[%emt 0:00:58]} O-O {[%emt 0:02:39]} 9. Re1 {[%emt 0:02:04]} d6 {[%emt 0:02:27]} 10. Nbd2 {[%emt 0:01:10]} Na5 {[%emt 0:03:29]} 11. Ba2 {[%emt 0:00:49]} c5 {[%emt 0:04:21]} 12. Nf1 {[%emt 0:01:20]} c4 {[%emt 0:13:43]} 1/2-1/2

[Event "FIDE World Senior-Women CC 2023"]
[Site "Terrasini"]
[Date "2023.11.04"]
[Round "10.4"]
[White "Klinova, Masha"]
[Black "Bogumil, Tatiana"]
[Result "1/2-1/2"]
[ECO "B31"]
[WhiteElo "2249"]
[BlackElo "2080"]
[Annotator "ChessBase"]
[PlyCount "42"]
[EventDate "2023.10.22"]
[EventType "swiss"]
[EventCountry "ITA"]
[SourceTitle "playchess.com"]
[Source "ChessBase"]
[SourceQuality "1"]
[TimeControl "40/5400+30:1800+30"]

1. e4 {[%emt 0:00:01]} c5 {[%emt 0:00:20]} 2. Nf3 {[%emt 0:00:05]} Nc6 {[%emt 0:00:16]} 3. Bb5 {[%emt 0:00:14]} g6 {[%emt 0:00:33]} 4. Bxc6 {[%emt 0:03:22]} dxc6 {[%emt 0:00:14]} 5. d3 {[%emt 0:00:08]} Bg7 {[%emt 0:00:10]} 6. Nc3 {[%emt 0:00:29]} Nf6 {[%emt 0:02:59]} 7. Be3 {[%emt 0:00:28]} Nd7 {[%emt 0:03:13]} 8. Qd2 {[%emt 0:01:55]} h6 {[%emt 0:02:15]} 9. O-O {[%emt 0:03:15]} e5 {[%emt 0:01:55]} 10. a3 {[%emt 0:01:33]} Qe7 {[%emt 0:04:39]} 11. Rfb1 {[%emt 0:07:55]} Nf8 {[%emt 0:08:11]} 12. b4 {[%emt 0:02:51]} Ne6 {[%emt 0:00:15]} 13. Na4 {[%emt 0:04:00]} b6 {[%emt 0:09:41]} 14. bxc5 {[%emt 0:03:11]} b5 {[%emt 0:00:20]} 15. Nc3 {[%emt 0:01:03]} a5 {[%emt 0:14:02]} 16. d4 {[%emt 0:15:15]} exd4 {[%emt 0:02:52]} 17. Nxd4 {[%emt 0:00:20]} Bb7 {[%emt 0:10:44]} 18. Nxe6 {[%emt 0:11:34]} Qxe6 {[%emt 0:01:16]} 19. Bd4 {[%emt 0:01:06]} O-O-O {[%emt 0:02:52]} 20. Ne2 {[%emt 0:04:51]} Qxe4 {[%emt 0:02:05]} 21. c3 {[%emt 0:00:27]} Rhe8 {[%emt 0:05:19]} 1/2-1/2

[Event "FIDE World Senior-Women CC 2023"]
[Site "Terrasini"]
[Date "2023.11.04"]
[Round "10.5"]
[White "Tereladze, Sopio"]
[Black "Gaprindashvili, Nona"]
[Result "1-0"]
[ECO "B15"]
[WhiteElo "2215"]
[BlackElo "2267"]
[Annotator "ChessBase"]
[PlyCount "193"]
[EventDate "2023.10.22"]
[EventType "swiss"]
[EventCountry "ITA"]
[SourceTitle "playchess.com"]
[Source "ChessBase"]
[SourceQuality "1"]
[TimeControl "40/5400+30:1800+30"]

1. e4 {[%emt 0:00:02]} g6 {[%emt 0:00:08]} 2. d4 {[%emt 0:00:04]} c6 {[%emt 0:00:09]} 3. Nc3 {[%emt 0:00:08]} d5 {[%emt 0:00:10]} 4. e5 {[%emt 0:00:34]} Bg7 {[%emt 0:00:14]} 5. h3 {[%emt 0:00:28]} Nh6 {[%emt 0:01:34]} 6. g4 {[%emt 0:01:03]} f6 {[%emt 0:00:07]} 7. f4 {[%emt 0:00:44]} Nf7 {[%emt 0:00:09]} 8. Be3 {[%emt 0:00:28]} Qb6 {[%emt 0:19:49]} 9. Na4 {[%emt 0:02:44]} Qa5+ {[%emt 0:06:05]} 10. c3 {[%emt 0:03:33]} Na6 {[%emt 0:03:49]} 11. b4 {[%emt 0:00:56]} Nxb4 {[%emt 0:01:17]} 12. cxb4 {[%emt 0:00:45]} Qxb4+ {[%emt 0:00:02]} 13. Kf2 {[%emt 0:01:13]} fxe5 {[%emt 0:08:32]} 14. fxe5 {[%emt 0:03:45]} O-O {[%emt 0:04:02]} 15. Nf3 {[%emt 0:00:48]} Bxe5 {[%emt 0:05:41]} 16. dxe5 {[%emt 0:05:39]} Nxe5 {[%emt 0:00:03]} 17. Bg2 {[%emt 0:03:44]} Bxg4 {[%emt 0:00:52]} 18. hxg4 {[%emt 0:00:55]} Nxg4+ {[%emt 0:00:04]} 19. Ke2 {[%emt 0:01:59]} Qe4 {[%emt 0:42:18]} 20. Qd4 {[%emt 0:11:46]} Rf4 {[%emt 0:03:19]} 21. Nc3 {[%emt 0:02:01]} Qc2+ {[%emt 0:00:11]} 22. Qd2 {[%emt 0:00:36]} Nxe3 {[%emt 0:00:21]} 23. Qxc2 {[%emt 0:03:25]} Nxc2 {[%emt 0:00:03]} 24. Rac1 {[%emt 0:01:20]} Na3 {[%emt 0:01:27]} 25. Ne5 {[%emt 0:07:46]} Rf5 {[%emt 0:00:41]} 26. Nd3 {[%emt 0:01:50]} e5 {[%emt 0:01:14]} 27. Nxd5 {[%emt 0:02:18]} cxd5 {[%emt 0:00:22]} 28. Bxd5+ {[%emt 0:00:04]} Kg7 {[%emt 0:00:14]} 29. Rc7+ {[%emt 0:00:24]} Kf6 {[%emt 0:00:02]} 30. Rxb7 {[%emt 0:03:24]} Rc8 {[%emt 0:00:01]} 31. Rxa7 {[%emt 0:03:56]} Nb5 {[%emt 0:00:16]} 32. Rf7+ {[%emt 0:01:04]} Kg5 {[%emt 0:00:02]} 33. Rg1+ {[%emt 0:00:47]} Kh6 {[%emt 0:00:01]} 34. Rxf5 {[%emt 0:03:36]} gxf5 {[%emt 0:00:04]} 35. Bb3 {[%emt 0:09:49]} Nd4+ {[%emt 0:01:50]} 36. Kd1 {[%emt 0:03:54]} Nxb3 {[%emt 0:01:10]} 37. axb3 {[%emt 0:00:01]} Rc3 {[%emt 0:00:01]} 38. Nc1 {[%emt 0:00:25]} e4 {[%emt 0:00:10]} 39. Kd2 {[%emt 0:00:09]} Rf3 {[%emt 0:00:30]} 40. b4 {[%emt 0:00:51]} f4 {[%emt 0:00:14]} 41. Re1 {[%emt 0:30:50]} Rf2+ {[%emt 0:32:58]} 42. Re2 {[%emt 0:02:03]} e3+ {[%emt 0:00:16]} 43. Kc3 {[%emt 0:15:34]} Rf1 {[%emt 0:00:42]} 44. Nd3 {[%emt 0:00:00]} Kg5 {[%emt 0:00:00]} 45. b5 {[%emt 0:00:00]} Ra1 {[%emt 0:00:00]} 46. b6 {[%emt 0:00:00]} Ra8 {[%emt 0:00:00]} 47. Rg2+ {[%emt 0:00:00]} Kf5 {[%emt 0:00:00]} 48. Rg7 {[%emt 0:00:00]} Rb8 {[%emt 0:00:00]} 49. b7 {[%emt 0:00:00]} Kf6 {[%emt 0:00:00]} 50. Rc7 {[%emt 0:00:06]} f3 {[%emt 0:00:00]} 51. Nb4 {[%emt 0:00:27]} f2 {[%emt 0:00:00]} 52. Nd5+ {[%emt 0:00:04]} Ke5 {[%emt 0:00:00]} 53. Nxe3 {[%emt 0:00:17]} Kd6 {[%emt 0:00:00]} 54. Rf7 {[%emt 0:00:36]} Kc6 {[%emt 0:00:00]} 55. Nc4 {[%emt 0:00:38]} f1=Q {[%emt 0:00:00]} 56. Rxf1 {[%emt 0:00:26]} Kxb7 {[%emt 0:00:00]} 57. Rf7+ {[%emt 0:00:05]} Kc6 {[%emt 0:00:00]} 58. Rxh7 {[%emt 0:00:01]} Rb1 {[%emt 0:00:00]} 59. Rh6+ {[%emt 0:00:26]} Kc5 {[%emt 0:00:00]} 60. Rh5+ {[%emt 0:00:08]} Kc6 {[%emt 0:00:00]} 61. Ne3 {[%emt 0:00:16]} Kd6 {[%emt 0:00:00]} 62. Kd4 {[%emt 0:00:03]} Ke6 {[%emt 0:00:00]} 63. Rh6+ {[%emt 0:00:06]} Kf7 {[%emt 0:00:00]} 64. Nf5 {[%emt 0:00:27]} Re1 {[%emt 0:00:00]} 65. Ng3 {[%emt 0:00:15]} Rg1 {[%emt 0:00:00]} 66. Nh5 {[%emt 0:00:52]} Re1 {[%emt 0:00:00]} 67. Ng3 {[%emt 0:00:29]} Rg1 {[%emt 0:00:00]} 68. Ne4 {[%emt 0:00:06]} Ra1 {[%emt 0:00:00]} 69. Kd5 {[%emt 0:00:24]} Ra5+ {[%emt 0:00:00]} 70. Nc5 {[%emt 0:00:02]} Ra1 {[%emt 0:02:09]} 71. Ke5 {[%emt 0:00:16]} Re1+ {[%emt 0:03:08]} 72. Ne4 {[%emt 0:00:06]} Kg7 {[%emt 0:01:47]} 73. Rb6 {[%emt 0:00:52]} Kf7 {[%emt 0:01:19]} 74. Rf6+ {[%emt 0:00:22]} Kg7 {[%emt 0:00:05]} 75. Rf4 {[%emt 0:00:02]} Kg6 {[%emt 0:00:37]} 76. Ke6 {[%emt 0:00:57]} Re3 {[%emt 0:03:46]} 77. Rg4+ {[%emt 0:00:35]} Kh5 {[%emt 0:00:04]} 78. Rg8 {[%emt 0:00:49]} Kh6 {[%emt 0:00:50]} 79. Kf5 {[%emt 0:02:05]} Rf3+ {[%emt 0:00:18]} 80. Ke5 {[%emt 0:01:19]} Re3 {[%emt 0:01:12]} 81. Rg1 {[%emt 0:02:56]} Ra3 {[%emt 0:01:58]} 82. Nd6 {[%emt 0:00:42]} Ra5+ {[%emt 0:01:54]} 83. Kf6 {[%emt 0:00:41]} Kh5 {[%emt 0:00:03]} 84. Nf7 {[%emt 0:01:18]} Ra2 {[%emt 0:00:33]} 85. Nd6 {[%emt 0:01:47]} Kh4 {[%emt 0:00:30]} 86. Ke5 {[%emt 0:01:02]} Kh3 {[%emt 0:01:10]} 87. Ne4 {[%emt 0:00:33]} Ra8 {[%emt 0:00:30]} 88. Rg6 {[%emt 0:00:47]} Ra1 {[%emt 0:00:38]} 89. Nf2+ {[%emt 0:02:01]} Kh4 {[%emt 0:00:17]} 90. Rg2 {[%emt 0:00:54]} Ra5+ {[%emt 0:00:38]} 91. Kf4 {[%emt 0:00:10]} Kh5 {[%emt 0:00:01]} 92. Ne4 {[%emt 0:00:16]} Kh6 {[%emt 0:00:12]} 93. Nd6 {[%emt 0:00:09]} Ra1 {[%emt 0:00:10]} 94. Ke5 {[%emt 0:00:12]} Re1+ {[%emt 0:00:04]} 95. Kf6 {[%emt 0:00:06]} Kh5 {[%emt 0:00:09]} 96. Nf5 {[%emt 0:00:29]} Ra1 {[%emt 0:00:23]} 97. Rg5# {[%emt 0:00:02]} 1-0

[Event "FIDE World Senior-Women CC 2023"]
[Site "Terrasini"]
[Date "2023.11.05"]
[Round "11.2"]
[White "Bogumil, Tatiana"]
[Black "Strutinskaia, Galina"]
[Result "1/2-1/2"]
[ECO "D46"]
[WhiteElo "2080"]
[BlackElo "2114"]
[Annotator "NA"]
[PlyCount "25"]
[EventDate "2023.10.22"]
[EventType "swiss"]
[EventCountry "ITA"]
[SourceTitle "playchess.com"]
[Source "ChessBase"]
[SourceQuality "1"]
[TimeControl "40/5400+30:1800+30"]

1. Nf3 {[%emt 0:00:02]} d5 {[%emt 0:00:10]} 2. d4 {[%emt 0:00:25]} Nf6 {[%emt 0:00:06]} 3. c4 {[%emt 0:00:20]} e6 {[%emt 0:00:05]} 4. Nc3 {[%emt 0:00:19]} c6 {[%emt 0:00:06]} 5. e3 {[%emt 0:02:05]} Nbd7 {[%emt 0:00:29]} 6. a3 {[%emt 0:00:18]} Bd6 {[%emt 0:00:13]} 7. Bd3 {[%emt 0:00:17]} O-O {[%emt 0:00:12]} 8. O-O {[%emt 0:00:14]} a6 {[%emt 0:00:15]} 9. e4 {[%emt 0:02:19]} dxc4 {[%emt 0:00:26]} 10. Bxc4 {[%emt 0:00:27]} e5 {[%emt 0:00:04]} 11. dxe5 {[%emt 0:00:28]} Nxe5 {[%emt 0:00:06]} 12. Nxe5 {[%emt 0:00:12]} Bxe5 {[%emt 0:00:04]} 13. Qxd8 {[%emt 0:01:02]} 1/2-1/2